[Event "Late-Titled-Tuesday-Blitz-May-28-2024"]
[Site "Chess.com"]
[Date "2024.05.28"]
[Round "5"]
[White "jcmesafischer"]
[Black "WindWhistler11"]
[Result "1-0"]
[WhiteElo "2365"]
[BlackElo "2521"]
[TimeControl "180+1"]
[EndTime "14:57:28 PDT"]
[Termination "jcmesafischer won by checkmate"]

1. e4 {[%clk 0:02:57.4]} 1... e6 {[%clk 0:03:00.3]} 2. Qe2 {[%clk 0:02:52.3]}
2... b6 {[%clk 0:02:57.7]} 3. Nf3 {[%clk 0:02:37.8]} 3... Ba6 {[%clk 0:02:50.7]}
4. d3 {[%clk 0:02:28.3]} 4... c5 {[%clk 0:02:51.2]} 5. g3 {[%clk 0:02:25.4]}
5... Be7 {[%clk 0:02:43.2]} 6. Bg2 {[%clk 0:02:23.7]} 6... d5 {[%clk 0:02:42.5]}
7. Nbd2 {[%clk 0:02:16.2]} 7... Nf6 {[%clk 0:02:39.6]} 8. O-O {[%clk 0:02:12.5]}
8... O-O {[%clk 0:02:39.2]} 9. e5 {[%clk 0:02:11.5]} 9... Nfd7 {[%clk
0:02:39.5]} 10. Re1 {[%clk 0:01:57.7]} 10... Nc6 {[%clk 0:02:38.3]} 11. h4
{[%clk 0:01:54.9]} 11... Qb8 {[%clk 0:02:24.5]} 12. Nf1 {[%clk 0:01:47]} 12...
Bd8 {[%clk 0:02:23.6]} 13. N1h2 {[%clk 0:01:42]} 13... b5 {[%clk 0:02:06.6]} 14.
h5 {[%clk 0:01:35.6]} 14... b4 {[%clk 0:02:02.7]} 15. Ng4 {[%clk 0:01:28.7]}
15... Qb6 {[%clk 0:01:47]} 16. Be3 {[%clk 0:01:17]} 16... Qa5 {[%clk 0:01:24.5]}
17. Qd2 {[%clk 0:01:09.2]} 17... c4 {[%clk 0:00:52.4]} 18. dxc4 {[%clk 0:01:09]}
18... Bxc4 {[%clk 0:00:47.5]} 19. Bg5 {[%clk 0:00:53.5]} 19... Rc8 {[%clk
0:00:40.4]} 20. h6 {[%clk 0:00:51.4]} 20... g6 {[%clk 0:00:39.8]} 21. Bxd8
{[%clk 0:00:46.3]} 21... Qxd8 {[%clk 0:00:39.8]} 22. a3 {[%clk 0:00:33.6]} 22...
a5 {[%clk 0:00:35.6]} 23. axb4 {[%clk 0:00:27.7]} 23... Nxb4 {[%clk 0:00:32.7]}
24. c3 {[%clk 0:00:18.7]} 24... Nd3 {[%clk 0:00:30.3]} 25. Reb1 {[%clk
0:00:16.9]} 25... N3c5 {[%clk 0:00:29.8]} 26. Ra3 {[%clk 0:00:12.8]} 26... Ne4
{[%clk 0:00:26.9]} 27. Qf4 {[%clk 0:00:08.9]} 27... Rb8 {[%clk 0:00:16.6]} 28.
Nd4 {[%clk 0:00:08.1]} 28... Nec5 {[%clk 0:00:08.8]} 29. Nc6 {[%clk 0:00:07.7]}
29... Nd3 {[%clk 0:00:05.4]} 30. Qe3 {[%clk 0:00:06.2]} 30... Qb6 {[%clk
0:00:04.6]} 31. Nxb8 {[%clk 0:00:05.5]} 31... Qxe3 {[%clk 0:00:04]} 32. Nxe3
{[%clk 0:00:05.2]} 32... Nxb8 {[%clk 0:00:04.1]} 33. Rxa5 {[%clk 0:00:05]} 33...
Bb3 {[%clk 0:00:03.4]} 34. Ra3 {[%clk 0:00:04.3]} 34... Bc4 {[%clk 0:00:02.9]}
35. b3 {[%clk 0:00:03.7]} 35... Bb5 {[%clk 0:00:02.2]} 36. c4 {[%clk 0:00:04.1]}
36... Be8 {[%clk 0:00:02.4]} 37. cxd5 {[%clk 0:00:04.2]} 37... Nxe5 {[%clk
0:00:03.1]} 38. dxe6 {[%clk 0:00:04]} 38... fxe6 {[%clk 0:00:04]} 39. b4 {[%clk
0:00:04]} 39... Nbd7 {[%clk 0:00:04.5]} 40. b5 {[%clk 0:00:04.4]} 40... Nb6
{[%clk 0:00:04.7]} 41. Ra6 {[%clk 0:00:03.7]} 41... Ned7 {[%clk 0:00:04.8]} 42.
Bc6 {[%clk 0:00:03.7]} 42... Nc8 {[%clk 0:00:04]} 43. Bxd7 {[%clk 0:00:04]}
43... Bxd7 {[%clk 0:00:04.9]} 44. Ra8 {[%clk 0:00:03.9]} 44... Nb6 {[%clk
0:00:04.7]} 45. Rxf8+ {[%clk 0:00:02.8]} 45... Kxf8 {[%clk 0:00:05.6]} 46. Rc1
{[%clk 0:00:02.8]} 46... Ke7 {[%clk 0:00:06.2]} 47. Nc4 {[%clk 0:00:03.3]} 47...
Nd5 {[%clk 0:00:06.2]} 48. Ne5 {[%clk 0:00:03.3]} 48... Bxb5 {[%clk 0:00:06.2]}
49. Rb1 {[%clk 0:00:03.9]} 49... Be8 {[%clk 0:00:05.4]} 50. Rb7+ {[%clk
0:00:03.7]} 50... Kf6 {[%clk 0:00:06.1]} 51. f4 {[%clk 0:00:02.7]} 51... g5
{[%clk 0:00:05.7]} 52. Rxh7 {[%clk 0:00:02.3]} 52... gxf4 {[%clk 0:00:06.6]} 53.
gxf4 {[%clk 0:00:02.7]} 53... Nxf4 {[%clk 0:00:06.9]} 54. Ng4+ {[%clk
0:00:02.2]} 54... Kg5 {[%clk 0:00:07]} 55. Rg7+ {[%clk 0:00:02.7]} 55... Kf5
{[%clk 0:00:06.9]} 56. h7 {[%clk 0:00:03.2]} 56... Nh3+ {[%clk 0:00:06.9]} 57.
Kh2 {[%clk 0:00:03]} 57... Nf4 {[%clk 0:00:07.8]} 58. h8=Q {[%clk 0:00:03.1]}
58... Bc6 {[%clk 0:00:08.4]} 59. Qh7+ {[%clk 0:00:03.1]} 59... Ng6 {[%clk
0:00:05.9]} 60. Qxg6+ {[%clk 0:00:03.8]} 60... Kf4 {[%clk 0:00:04.1]} 61. Qf6+
{[%clk 0:00:04.4]} 61... Ke4 {[%clk 0:00:01.8]} 62. Qe5+ {[%clk 0:00:04.7]}
62... Kd3 {[%clk 0:00:01.7]} 63. Nf2+ {[%clk 0:00:04.5]} 63... Kd2 {[%clk
0:00:01.7]} 64. Qd4+ {[%clk 0:00:03.9]} 64... Kc1 {[%clk 0:00:01.4]} 65. Qc3+
{[%clk 0:00:04]} 65... Kb1 {[%clk 0:00:01.2]} 66. Rg1+ {[%clk 0:00:02.9]} 66...
Ka2 {[%clk 0:00:01.3]} 67. Ra1# {[%clk 0:00:03.8]} 1-0

[Event "Late-Titled-Tuesday-Blitz-May-28-2024"]
[Site "Chess.com"]
[Date "2024.05.28"]
[Round "5"]
[White "rhungaski"]
[Black "RespectfulDaveOnYouTube"]
[Result "1-0"]
[WhiteElo "2609"]
[BlackElo "2475"]
[TimeControl "180+1"]
[EndTime "14:57:39 PDT"]
[Termination "rhungaski won by checkmate"]

1. b3 {[%clk 0:03:00.9]} 1... d5 {[%clk 0:02:54.5]} 2. Bb2 {[%clk 0:03:00.5]}
2... Bg4 {[%clk 0:02:52.8]} 3. f3 {[%clk 0:02:50]} 3... Bh5 {[%clk 0:02:51.4]}
4. e4 {[%clk 0:02:44.2]} 4... dxe4 {[%clk 0:02:42.7]} 5. Qe2 {[%clk 0:02:44.6]}
5... Nd7 {[%clk 0:02:10.9]} 6. Nc3 {[%clk 0:02:44.1]} 6... exf3 {[%clk 0:01:55]}
7. Nxf3 {[%clk 0:02:45]} 7... Ngf6 {[%clk 0:01:55.4]} 8. O-O-O {[%clk
0:02:44.7]} 8... e6 {[%clk 0:01:54]} 9. h3 {[%clk 0:02:42.5]} 9... Bd6 {[%clk
0:01:48.7]} 10. g4 {[%clk 0:02:42.7]} 10... Bg6 {[%clk 0:01:48.8]} 11. Bg2
{[%clk 0:02:36.9]} 11... c6 {[%clk 0:01:25.6]} 12. Nh4 {[%clk 0:02:32.7]} 12...
Qa5 {[%clk 0:01:22.2]} 13. Kb1 {[%clk 0:02:27.1]} 13... O-O-O {[%clk 0:01:17.9]}
14. Nxg6 {[%clk 0:02:26.8]} 14... hxg6 {[%clk 0:01:17.9]} 15. Ne4 {[%clk
0:02:27.4]} 15... Nxe4 {[%clk 0:01:08.8]} 16. Qxe4 {[%clk 0:02:28.3]} 16... Nf6
{[%clk 0:00:56.3]} 17. Qf3 {[%clk 0:02:28.1]} 17... Be5 {[%clk 0:00:37.9]} 18.
d4 {[%clk 0:02:27.9]} 18... Bd6 {[%clk 0:00:38]} 19. h4 {[%clk 0:02:24.9]} 19...
Rd7 {[%clk 0:00:36.4]} 20. g5 {[%clk 0:02:23.1]} 20... Nh5 {[%clk 0:00:33]} 21.
Qg4 {[%clk 0:01:54.1]} 21... Qf5 {[%clk 0:00:31.4]} 22. Bf3 {[%clk 0:01:41.3]}
22... Ng3 {[%clk 0:00:25.9]} 23. Rh3 {[%clk 0:01:35.8]} 23... Qxg4 {[%clk
0:00:23]} 24. Bxg4 {[%clk 0:01:36.7]} 24... Ne4 {[%clk 0:00:19.3]} 25. d5 {[%clk
0:01:12.7]} 25... cxd5 {[%clk 0:00:15.6]} 26. Bxg7 {[%clk 0:01:12.3]} 26... Rh7
{[%clk 0:00:15.1]} 27. Bd4 {[%clk 0:01:11.6]} 27... Kd8 {[%clk 0:00:09.5]} 28.
Kb2 {[%clk 0:01:04.6]} 28... b6 {[%clk 0:00:07]} 29. Rf1 {[%clk 0:01:03]} 29...
Rc7 {[%clk 0:00:06.2]} 30. Rd1 {[%clk 0:00:41.7]} 30... Ke7 {[%clk 0:00:05.8]}
31. a4 {[%clk 0:00:23.8]} 31... Bc5 {[%clk 0:00:05.6]} 32. Be5 {[%clk
0:00:21.7]} 32... Bd6 {[%clk 0:00:05]} 33. Bd4 {[%clk 0:00:21.9]} 33... Ke8
{[%clk 0:00:02.7]} 34. Re1 {[%clk 0:00:19.2]} 34... Bc5 {[%clk 0:00:02.1]} 35.
Be5 {[%clk 0:00:18]} 35... Rc8 {[%clk 0:00:01.6]} 36. Bf4 {[%clk 0:00:16.1]}
36... Bf2 {[%clk 0:00:01.6]} 37. Re2 {[%clk 0:00:15.1]} 37... Bd4+ {[%clk
0:00:01.7]} 38. Kc1 {[%clk 0:00:14.8]} 38... Nc3 {[%clk 0:00:02.1]} 39. Rd2
{[%clk 0:00:14.3]} 39... Na2+ {[%clk 0:00:02.2]} 40. Kd1 {[%clk 0:00:13.5]}
40... Bc3 {[%clk 0:00:02.5]} 41. Rdd3 {[%clk 0:00:13.5]} 41... Nb4 {[%clk
0:00:03]} 42. Rxc3 {[%clk 0:00:13.8]} 42... Rxc3 {[%clk 0:00:02.6]} 43. Rxc3
{[%clk 0:00:14.4]} 43... Rxh4 {[%clk 0:00:02.9]} 44. Rc8+ {[%clk 0:00:13.2]}
44... Kd7 {[%clk 0:00:03.4]} 45. Rc7+ {[%clk 0:00:13.6]} 45... Kd8 {[%clk
0:00:04.1]} 46. Bd6 {[%clk 0:00:13.5]} 46... Rxg4 {[%clk 0:00:03]} 47. Rxf7
{[%clk 0:00:13.8]} 47... Nc6 {[%clk 0:00:02.5]} 48. Rc7 {[%clk 0:00:13.6]} 48...
Nd4 {[%clk 0:00:01.7]} 49. Rxa7 {[%clk 0:00:13.8]} 49... Rg1+ {[%clk 0:00:01.8]}
50. Kd2 {[%clk 0:00:13.8]} 50... Nf3+ {[%clk 0:00:02.2]} 51. Ke3 {[%clk
0:00:13.5]} 51... Nxg5 {[%clk 0:00:03.1]} 52. Bc7+ {[%clk 0:00:10.3]} 52... Kd7
{[%clk 0:00:02.8]} 53. Bxb6+ {[%clk 0:00:10.9]} 53... Kc6 {[%clk 0:00:03.4]} 54.
a5 {[%clk 0:00:10.7]} 54... Ne4 {[%clk 0:00:02.8]} 55. c4 {[%clk 0:00:10.8]}
55... Rg3+ {[%clk 0:00:02.7]} 56. Kf4 {[%clk 0:00:11.2]} 56... Rxb3 {[%clk
0:00:03.6]} 57. Ke5 {[%clk 0:00:10.1]} 57... dxc4 {[%clk 0:00:02.8]} 58. Rc7+
{[%clk 0:00:10.3]} 58... Kb5 {[%clk 0:00:02.6]} 59. Kxe4 {[%clk 0:00:10.1]}
59... Rb1 {[%clk 0:00:01.8]} 60. Rb7 {[%clk 0:00:07.3]} 60... Kc6 {[%clk
0:00:01.1]} 61. Rc7+ {[%clk 0:00:07.1]} 61... Kb5 {[%clk 0:00:01.5]} 62. Rc5+
{[%clk 0:00:07.5]} 62... Ka6 {[%clk 0:00:01.2]} 63. Rxc4 {[%clk 0:00:07.6]}
63... Rb5 {[%clk 0:00:01.6]} 64. Rc6 {[%clk 0:00:06.9]} 64... g5 {[%clk
0:00:01.1]} 65. Rxe6 {[%clk 0:00:06.5]} 65... Kb7 {[%clk 0:00:01]} 66. Rg6
{[%clk 0:00:06.5]} 66... Rb4+ {[%clk 0:00:01]} 67. Kd5 {[%clk 0:00:06.4]} 67...
Rb5+ {[%clk 0:00:01.9]} 68. Kc4 {[%clk 0:00:06.3]} 68... Rf5 {[%clk 0:00:02]}
69. Kb4 {[%clk 0:00:06]} 69... Rf4+ {[%clk 0:00:01.7]} 70. Kb5 {[%clk
0:00:05.9]} 70... Rf5+ {[%clk 0:00:02.6]} 71. Bc5 {[%clk 0:00:06.2]} 71... Kc7
{[%clk 0:00:01.3]} 72. Rg7+ {[%clk 0:00:06.2]} 72... Kc8 {[%clk 0:00:01.5]} 73.
a6 {[%clk 0:00:06.8]} 73... Rf1 {[%clk 0:00:01]} 74. a7 {[%clk 0:00:06.2]} 74...
Rb1+ {[%clk 0:00:01.3]} 75. Kc6 {[%clk 0:00:06.8]} 75... Kd8 {[%clk 0:00:00.8]}
76. Rg8# {[%clk 0:00:05.5]} 1-0

[Event "Late-Titled-Tuesday-Blitz-May-28-2024"]
[Site "Chess.com"]
[Date "2024.05.28"]
[Round "5"]
[White "TheAlienParty"]
[Black "ChessLebaneseSalah"]
[Result "0-1"]
[WhiteElo "2383"]
[BlackElo "2556"]
[TimeControl "180+1"]
[EndTime "14:57:50 PDT"]
[Termination "ChessLebaneseSalah won by checkmate"]

1. c4 {[%clk 0:02:58.3]} 1... Nf6 {[%clk 0:02:57.7]} 2. Nc3 {[%clk 0:02:54.3]}
2... d5 {[%clk 0:02:50.8]} 3. cxd5 {[%clk 0:02:52.9]} 3... Nxd5 {[%clk
0:02:50.4]} 4. e4 {[%clk 0:02:50.8]} 4... Nb6 {[%clk 0:02:49.1]} 5. d4 {[%clk
0:02:45.6]} 5... g6 {[%clk 0:02:49.4]} 6. h3 {[%clk 0:02:44.4]} 6... Bg7 {[%clk
0:02:49.7]} 7. Be3 {[%clk 0:02:42.3]} 7... Nc6 {[%clk 0:02:47.2]} 8. Nf3 {[%clk
0:02:41.6]} 8... O-O {[%clk 0:02:46.3]} 9. Be2 {[%clk 0:02:38.3]} 9... e5 {[%clk
0:02:46.4]} 10. d5 {[%clk 0:02:17]} 10... Ne7 {[%clk 0:02:46]} 11. Rc1 {[%clk
0:02:07.9]} 11... Bd7 {[%clk 0:02:39.8]} 12. Nb5 {[%clk 0:01:59.3]} 12... Bxb5
{[%clk 0:02:36.2]} 13. Bxb5 {[%clk 0:01:58.8]} 13... f5 {[%clk 0:02:28.6]} 14.
Ng5 {[%clk 0:01:53.4]} 14... Qd6 {[%clk 0:02:16]} 15. O-O {[%clk 0:01:38.4]}
15... fxe4 {[%clk 0:02:00.5]} 16. Ne6 {[%clk 0:01:27.9]} 16... Qxd5 {[%clk
0:01:54.7]} 17. Qxd5 {[%clk 0:01:05.2]} 17... Nexd5 {[%clk 0:01:55.6]} 18. Nxf8
{[%clk 0:01:00.2]} 18... Bxf8 {[%clk 0:01:45.6]} 19. Bxb6 {[%clk 0:00:56.4]}
19... axb6 {[%clk 0:01:42]} 20. Rfe1 {[%clk 0:00:45.2]} 20... c6 {[%clk
0:01:35.3]} 21. Bc4 {[%clk 0:00:39.4]} 21... Kg7 {[%clk 0:01:26.2]} 22. Rxe4
{[%clk 0:00:37.9]} 22... Kf6 {[%clk 0:01:24.6]} 23. a3 {[%clk 0:00:34.2]} 23...
Bc5 {[%clk 0:01:24]} 24. Rh4 {[%clk 0:00:19.2]} 24... h5 {[%clk 0:01:22.5]} 25.
Kf1 {[%clk 0:00:15.9]} 25... Bd4 {[%clk 0:01:21.4]} 26. Rc2 {[%clk 0:00:14.6]}
26... Ra4 {[%clk 0:01:07.3]} 27. Re4 {[%clk 0:00:13.6]} 27... Kf5 {[%clk
0:01:02.5]} 28. Ree2 {[%clk 0:00:11]} 28... Nf4 {[%clk 0:00:54.9]} 29. Bb3
{[%clk 0:00:09.1]} 29... Ra8 {[%clk 0:00:50.3]} 30. Red2 {[%clk 0:00:08.9]}
30... h4 {[%clk 0:00:46.5]} 31. Rc1 {[%clk 0:00:08.5]} 31... g5 {[%clk
0:00:42.3]} 32. Bc2+ {[%clk 0:00:08.3]} 32... Kf6 {[%clk 0:00:41.6]} 33. Be4
{[%clk 0:00:08.3]} 33... Ra5 {[%clk 0:00:38.5]} 34. Kg1 {[%clk 0:00:08.1]} 34...
Rb5 {[%clk 0:00:34.2]} 35. b4 {[%clk 0:00:07.9]} 35... c5 {[%clk 0:00:28.5]} 36.
Kh2 {[%clk 0:00:05]} 36... cxb4 {[%clk 0:00:16]} 37. axb4 {[%clk 0:00:05.1]}
37... Rxb4 {[%clk 0:00:16.6]} 38. Bxb7 {[%clk 0:00:05.2]} 38... Rb3 {[%clk
0:00:13.1]} 39. Be4 {[%clk 0:00:04.7]} 39... b5 {[%clk 0:00:13.1]} 40. Rc6+
{[%clk 0:00:04.6]} 40... Ke7 {[%clk 0:00:13.1]} 41. g3 {[%clk 0:00:04.1]} 41...
hxg3+ {[%clk 0:00:08.8]} 42. fxg3 {[%clk 0:00:04.2]} 42... Ne6 {[%clk
0:00:08.4]} 43. Bd5 {[%clk 0:00:03.4]} 43... Nc5 {[%clk 0:00:07.2]} 44. Bxb3
{[%clk 0:00:02.9]} 44... Nxb3 {[%clk 0:00:06.2]} 45. Re2 {[%clk 0:00:03.5]}
45... b4 {[%clk 0:00:04.8]} 46. Rc4 {[%clk 0:00:01.8]} 46... Nc1 {[%clk
0:00:04.2]} 47. Rxd4 {[%clk 0:00:01.9]} 47... Nxe2 {[%clk 0:00:04.5]} 48. Rxb4
{[%clk 0:00:01.8]} 48... Nd4 {[%clk 0:00:04]} 49. Rb2 {[%clk 0:00:02.3]} 49...
Kf6 {[%clk 0:00:04.2]} 50. Kg2 {[%clk 0:00:03.2]} 50... Kf5 {[%clk 0:00:04.6]}
51. Kf2 {[%clk 0:00:03.8]} 51... Ke4 {[%clk 0:00:04.3]} 52. Rb8 {[%clk
0:00:04.7]} 52... Kf5 {[%clk 0:00:04.5]} 53. Rg8 {[%clk 0:00:05.4]} 53... Kf6
{[%clk 0:00:04.7]} 54. Rf8+ {[%clk 0:00:06.3]} 54... Kg6 {[%clk 0:00:04.9]} 55.
Re8 {[%clk 0:00:06.7]} 55... Kf6 {[%clk 0:00:05.2]} 56. Rf8+ {[%clk 0:00:07]}
56... Kg6 {[%clk 0:00:05.5]} 57. Ra8 {[%clk 0:00:07.8]} 57... Kf5 {[%clk
0:00:05.2]} 58. Ke3 {[%clk 0:00:07.7]} 58... Nc2+ {[%clk 0:00:05.1]} 59. Kd2
{[%clk 0:00:07.5]} 59... Nd4 {[%clk 0:00:05.5]} 60. Kd3 {[%clk 0:00:08.4]} 60...
Ne6 {[%clk 0:00:04]} 61. Ra5 {[%clk 0:00:07.3]} 61... g4 {[%clk 0:00:02]} 62. h4
{[%clk 0:00:07.1]} 62... Ng7 {[%clk 0:00:01.6]} 63. Ke3 {[%clk 0:00:07]} 63...
Nh5 {[%clk 0:00:02.1]} 64. Kf2 {[%clk 0:00:06.6]} 64... Nf6 {[%clk 0:00:02.6]}
65. Ra8 {[%clk 0:00:06.5]} 65... Ne4+ {[%clk 0:00:03]} 66. Kg2 {[%clk
0:00:07.4]} 66... Nf6 {[%clk 0:00:03.3]} 67. Rf8 {[%clk 0:00:07.7]} 67... Kg6
{[%clk 0:00:03.8]} 68. Ra8 {[%clk 0:00:07.3]} 68... Kf5 {[%clk 0:00:04.1]} 69.
Ra2 {[%clk 0:00:07.7]} 69... Ne4 {[%clk 0:00:04.2]} 70. Re2 {[%clk 0:00:07.4]}
70... Nf6 {[%clk 0:00:04.5]} 71. Re3 {[%clk 0:00:07.4]} 71... Nd5 {[%clk
0:00:04.6]} 72. Ra3 {[%clk 0:00:07.1]} 72... e4 {[%clk 0:00:04.3]} 73. Kf1
{[%clk 0:00:07.4]} 73... e3 {[%clk 0:00:04]} 74. Ke2 {[%clk 0:00:07]} 74... Ke4
{[%clk 0:00:03.9]} 75. Rxe3+ {[%clk 0:00:07.4]} 75... Nxe3 {[%clk 0:00:03.9]}
76. h5 {[%clk 0:00:07.9]} 76... Nf5 {[%clk 0:00:04.3]} 77. h6 {[%clk 0:00:08.4]}
77... Nxh6 {[%clk 0:00:04]} 78. Kf2 {[%clk 0:00:09.3]} 78... Nf5 {[%clk
0:00:04.9]} 79. Ke2 {[%clk 0:00:10.1]} 79... Nxg3+ {[%clk 0:00:05]} 80. Kf2
{[%clk 0:00:11]} 80... Nf5 {[%clk 0:00:05.9]} 81. Kg2 {[%clk 0:00:11.7]} 81...
Kf4 {[%clk 0:00:06.8]} 82. Kf2 {[%clk 0:00:12.2]} 82... g3+ {[%clk 0:00:07.7]}
83. Kg2 {[%clk 0:00:12.9]} 83... Kg4 {[%clk 0:00:08.6]} 84. Kg1 {[%clk
0:00:13.4]} 84... Nh4 {[%clk 0:00:09.2]} 85. Kh1 {[%clk 0:00:14.3]} 85... Nf5
{[%clk 0:00:08.9]} 86. Kg1 {[%clk 0:00:15.2]} 86... Kh3 {[%clk 0:00:09.4]} 87.
Kh1 {[%clk 0:00:16.1]} 87... Nd4 {[%clk 0:00:08.4]} 88. Kg1 {[%clk 0:00:17]}
88... Nf3+ {[%clk 0:00:08.4]} 89. Kh1 {[%clk 0:00:17.9]} 89... g2# {[%clk
0:00:08.9]} 0-1

[Event "Late-Titled-Tuesday-Blitz-May-28-2024"]
[Site "Chess.com"]
[Date "2024.05.28"]
[Round "5"]
[White "TheDiscoOne"]
[Black "simaopdias"]
[Result "1-0"]
[WhiteElo "2513"]
[BlackElo "2256"]
[TimeControl "180+1"]
[EndTime "14:57:50 PDT"]
[Termination "TheDiscoOne won on time"]

1. c4 {[%clk 0:03:00.9]} 1... e6 {[%clk 0:02:59.2]} 2. g3 {[%clk 0:03:00.2]}
2... Be7 {[%clk 0:02:57.2]} 3. Bg2 {[%clk 0:03:00.6]} 3... Nf6 {[%clk
0:02:58.1]} 4. Nf3 {[%clk 0:03:00.7]} 4... O-O {[%clk 0:02:58.7]} 5. O-O {[%clk
0:03:01.3]} 5... d5 {[%clk 0:02:58.1]} 6. b3 {[%clk 0:03:00.8]} 6... b6 {[%clk
0:02:55.9]} 7. cxd5 {[%clk 0:02:58.7]} 7... exd5 {[%clk 0:02:55.5]} 8. Bb2
{[%clk 0:02:58.7]} 8... Be6 {[%clk 0:02:56]} 9. d4 {[%clk 0:02:56]} 9... c5
{[%clk 0:02:56.4]} 10. Nc3 {[%clk 0:02:54.1]} 10... Nc6 {[%clk 0:02:52.4]} 11.
Rc1 {[%clk 0:02:53.8]} 11... Rc8 {[%clk 0:02:52.1]} 12. e3 {[%clk 0:02:47.2]}
12... h6 {[%clk 0:02:48.5]} 13. dxc5 {[%clk 0:02:32.3]} 13... bxc5 {[%clk
0:02:47.4]} 14. Qe2 {[%clk 0:02:31.1]} 14... Qa5 {[%clk 0:02:41.4]} 15. Rfd1
{[%clk 0:02:27.8]} 15... Rfd8 {[%clk 0:02:40.6]} 16. Qb5 {[%clk 0:01:59.7]}
16... a6 {[%clk 0:02:25.1]} 17. Qxa5 {[%clk 0:01:56.8]} 17... Nxa5 {[%clk
0:02:26]} 18. Na4 {[%clk 0:01:55.4]} 18... Ne4 {[%clk 0:02:17.7]} 19. Nd2 {[%clk
0:01:42.7]} 19... Nf6 {[%clk 0:02:01.9]} 20. Nf3 {[%clk 0:01:32.1]} 20... Ne4
{[%clk 0:02:01.4]} 21. Ne1 {[%clk 0:01:31.4]} 21... c4 {[%clk 0:01:50.7]} 22.
bxc4 {[%clk 0:01:22.4]} 22... Rxc4 {[%clk 0:01:50.5]} 23. Rxc4 {[%clk
0:01:18.1]} 23... Nxc4 {[%clk 0:01:51.4]} 24. Bd4 {[%clk 0:01:15.8]} 24... Bf6
{[%clk 0:01:40]} 25. Bxf6 {[%clk 0:01:05.8]} 25... Nxf6 {[%clk 0:01:40.9]} 26.
Nd3 {[%clk 0:01:03.7]} 26... Ne4 {[%clk 0:01:38.3]} 27. Ndc5 {[%clk 0:01:00.7]}
27... Nxc5 {[%clk 0:01:25.3]} 28. Nxc5 {[%clk 0:01:01.6]} 28... Rd6 {[%clk
0:01:18.7]} 29. Rd4 {[%clk 0:00:56.2]} 29... Ne5 {[%clk 0:01:18.1]} 30. h3
{[%clk 0:00:49.7]} 30... g6 {[%clk 0:01:17.5]} 31. Ne4 {[%clk 0:00:45.5]} 31...
Rb6 {[%clk 0:01:13.1]} 32. Nf6+ {[%clk 0:00:44.3]} 32... Kg7 {[%clk 0:01:13.1]}
33. Nxd5 {[%clk 0:00:44.1]} 33... Rb1+ {[%clk 0:01:13.4]} 34. Kh2 {[%clk
0:00:43.4]} 34... Rb2 {[%clk 0:01:08.4]} 35. Rf4 {[%clk 0:00:33.2]} 35... Rxa2
{[%clk 0:01:00.8]} 36. Nc7 {[%clk 0:00:31]} 36... Nd3 {[%clk 0:00:45.2]} 37.
Nxe6+ {[%clk 0:00:28.9]} 37... fxe6 {[%clk 0:00:45.4]} 38. Re4 {[%clk 0:00:25]}
38... Kf6 {[%clk 0:00:44.2]} 39. Rd4 {[%clk 0:00:17.9]} 39... Nxf2 {[%clk
0:00:41.1]} 40. Kg1 {[%clk 0:00:17.2]} 40... e5 {[%clk 0:00:36.1]} 41. Rd6+
{[%clk 0:00:11.9]} 41... Kg7 {[%clk 0:00:28.7]} 42. Rd7+ {[%clk 0:00:11.6]}
42... Kf6 {[%clk 0:00:28.8]} 43. Rd8 {[%clk 0:00:12]} 43... Ke7 {[%clk 0:00:27]}
44. Rd5 {[%clk 0:00:11.9]} 44... Kf6 {[%clk 0:00:26.3]} 45. Rd6+ {[%clk
0:00:11.9]} 45... Ke7 {[%clk 0:00:26.6]} 46. Rd5 {[%clk 0:00:11.7]} 46... Kf6
{[%clk 0:00:26.7]} 47. Rd8 {[%clk 0:00:09.6]} 47... Ke7 {[%clk 0:00:26.7]} 48.
Rg8 {[%clk 0:00:09.9]} 48... Nd3 {[%clk 0:00:23.4]} 49. Rxg6 {[%clk 0:00:09.2]}
49... Ra1+ {[%clk 0:00:23.1]} 50. Kh2 {[%clk 0:00:08.7]} 50... a5 {[%clk
0:00:23.1]} 51. Rxh6 {[%clk 0:00:08.8]} 51... a4 {[%clk 0:00:23.3]} 52. Ra6
{[%clk 0:00:08.1]} 52... Ne1 {[%clk 0:00:22.6]} 53. Bd5 {[%clk 0:00:07.8]} 53...
a3 {[%clk 0:00:20.3]} 54. h4 {[%clk 0:00:08.2]} 54... Rd1 {[%clk 0:00:16.9]} 55.
e4 {[%clk 0:00:07.6]} 55... Rd2+ {[%clk 0:00:13.5]} 56. Kh3 {[%clk 0:00:06.7]}
56... Rd3 {[%clk 0:00:12.5]} 57. h5 {[%clk 0:00:06.3]} 57... Kf8 {[%clk
0:00:10.5]} 58. h6 {[%clk 0:00:06.3]} 58... Nf3 {[%clk 0:00:08.5]} 59. Ra7
{[%clk 0:00:06.5]} 59... Ng5+ {[%clk 0:00:08.3]} 60. Kg4 {[%clk 0:00:06.3]}
60... a2 {[%clk 0:00:06.8]} 61. Kxg5 {[%clk 0:00:05.6]} 61... Rxg3+ {[%clk
0:00:06.8]} 62. Kf5 {[%clk 0:00:05.9]} 62... Rh3 {[%clk 0:00:06.1]} 63. Rxa2
{[%clk 0:00:04.9]} 63... Rxh6 {[%clk 0:00:05.9]} 64. Ra8+ {[%clk 0:00:05.6]}
64... Ke7 {[%clk 0:00:06]} 65. Ra7+ {[%clk 0:00:06.5]} 65... Kd8 {[%clk
0:00:06.3]} 66. Rf7 {[%clk 0:00:07]} 66... Rh5+ {[%clk 0:00:05.9]} 67. Ke6
{[%clk 0:00:06.8]} 67... Ke8 {[%clk 0:00:05.7]} 68. Rf5 {[%clk 0:00:06]} 68...
Rh1 {[%clk 0:00:02.9]} 69. Kxe5 {[%clk 0:00:06.2]} 69... Ke7 {[%clk 0:00:02.8]}
70. Rf7+ {[%clk 0:00:06]} 70... Ke8 {[%clk 0:00:03.3]} 71. Ra7 {[%clk
0:00:06.4]} 71... Kd8 {[%clk 0:00:03.4]} 72. Kd6 {[%clk 0:00:06.8]} 72... Rh6+
{[%clk 0:00:02]} 73. Be6 {[%clk 0:00:06.6]} 1-0